Workbook

Sheet IDACI (hidden)
A1: pcd | B1: lsoa11 | C1: IDACI
A2: BR11AA | B2: E01000675 | C2: 26797 | D2: D
A3: BR11AB | B3: E01000676 | C3: 8468 | D3: D
A4: BR11AD | B4: E01000675 | C4: 26797 | D4: D
A5: BR11AE | B5: E01000677 | C5: 20928 | D5: D
A6: BR11AF | B6: E01000675 | C6: 26797 | D6: D
A7: BR11AG | B7: E01000675 | C7: 26797 | D7: D
A8: BR11AH | B8: E01000675 | C8: 26797 | D8: D
A9: BR11AJ | B9: E01000675 | C9: 26797 | D9: D
A10: BR11AL | B10: E01000676 | C10: 8468 | D10: D
A11: BR11AN | B11: E01000675 | C11: 26797 | D11: D
A12: BR11AX | B12: E01000676 | C12: 8468 | D12: D
A13: BR11BA | B13: E01000670 | C13: 26601 | D13: D
A14: BR11BB | B14: E01000670 | C14: 26601 | D14: D
A15: BR11BP | B15: E01000674 | C15: 17363 | D15: D
A16: BR11BQ | B16: E01000675 | C16: 26797 | D16: D
A17: BR11BS | B17: E01000676 | C17: 8468 | D17: D
A18: BR11BT | B18: E01000829 | C18: 25853 | D18: D
A19: BR11BU | B19: E01000674 | C19: 17363 | D19: D
A20: BR11BW | B20: E01000670 | C20: 26601 | D20: D
A21: BR11BX | B21: E01000676 | C21: 8468 | D21: D
A22: BR11BY | B22: E01000676 | C22: 8468 | D22: D
A23: BR11BZ | B23: E01000676 | C23: 8468 | D23: D
A24: BR11DA | B24: E01000675 | C24: 26797 | D24: D
A25: BR11DB | B25: E01000676 | C25: 8468 | D25: D
A26: BR11DD | B26: E01000676 | C26: 8468 | D26: D
A27: BR11DE | B27: E01000674 | C27: 17363 | D27: D
A28: BR11DF | B28: E01000674 | C28: 17363 | D28: D
A29: BR11DG | B29: E01000674 | C29: 17363 | D29: D
A30: BR11DH | B30: E01000674 | C30: 17363 | D30: D
A31: BR11DJ | B31: E01000676 | C31: 8468 | D31: D
A32: BR11DL | B32: E01000674 | C32: 17363 | D32: D
A33: BR11DN | B33: E01000676 | C33: 8468 | D33: D
A34: BR11DP | B34: E01000670 | C34: 26601 | D34: D
A35: BR11DQ | B35: E01000674 | C35: 17363 | D35: D
A36: BR11DR | B36: E01000670 | C36: 26601 | D36: D
A37: BR11DS | B37: E01000675 | C37: 26797 | D37: D
A38: BR11DT | B38: E01000674 | C38: 17363 | D38: D
A39: BR11DU | B39: E01000670 | C39: 26601 | D39: D
A40: BR11DW | B40: E01000677 | C40: 20928 | D40: D
A41: BR11DX | B41: E01000676 | C41: 8468 | D41: D
A42: BR11EA | B42: E01000675 | C42: 26797 | D42: D
A43: BR11EE | B43: E01000675 | C43: 26797 | D43: D
A44: BR11EG | B44: E01000675 | C44: 26797 | D44: D
A45: BR11EH | B45: E01000676 | C45: 8468 | D45: D
A46: BR11EJ | B46: E01000675 | C46: 26797 | D46: D
A47: BR11EL | B47: E01000675 | C47: 26797 | D47: D
A48: BR11EN | B48: E01000675 | C48: 26797 | D48: D
A49: BR11EP | B49: E01000675 | C49: 26797 | D49: D
A50: BR11ER | B50: E01000675 | C50: 26797 | D50: D
A51: BR11ES | B51: E01000677 | C51: 20928 | D51: D
A52: BR11EU | B52: E01000677 | C52: 20928 | D52: D
A53: BR11EW | B53: E01000677 | C53: 20928 | D53: D
A54: BR11EX | B54: E01000677 | C54: 20928 | D54: D
A55: BR11EY | B55: E01000677 | C55: 20928 | D55: D
A56: BR11EZ | B56: E01000677 | C56: 20928 | D56: D
A57: BR11GA | B57: E01000677 | C57: 20928 | D57: D
A58: BR11HA | B58: E01000677 | C58: 20928 | D58: D
A59: BR11HB | B59: E01000677 | C59: 20928 | D59: D
A60: BR11HD | B60: E01000676 | C60: 8468 | D60: D
A61: BR11HE | B61: E01000677 | C61: 20928 | D61: D
A62: BR11HF | B62: E01000677 | C62: 20928 | D62: D
A63: BR11HG | B63: E01000677 | C63: 20928 | D63: D
A64: BR11HH | B64: E01000676 | C64: 8468 | D64: D
A65: BR11HJ | B65: E01000677 | C65: 20928 | D65: D
A66: BR11HL | B66: E01000677 | C66: 20928 | D66: D
A67: BR11HN | B67: E01000675 | C67: 26797 | D67: D
A68: BR11HP | B68: E01000675 | C68: 26797 | D68: D
A69: BR11HQ | B69: E01000677 | C69: 20928 | D69: D
A70: BR11HR | B70: E01000675 | C70: 26797 | D70: D
A71: BR11HS | B71: E01000675 | C71: 26797 | D71: D
A72: BR11HT | B72: E01000675 | C72: 26797 | D72: D
A73: BR11HU | B73: E01000675 | C73: 26797 | D73: D
A74: BR11HW | B74: E01000675 | C74: 26797 | D74: D
A75: BR11HX | B75: E01000675 | C75: 26797 | D75: D
A76: BR11HY | B76: E01000675 | C76: 26797 | D76: D
A77: BR11HZ | B77: E01000675 | C77: 26797 | D77: D
A78: BR11JA | B78: E01000675 | C78: 26797 | D78: D
A79: BR11JB | B79: E01000677 | C79: 20928 | D79: D
A80: BR11JD | B80: E01000676 | C80: 8468 | D80: D
A81: BR11JF | B81: E01000676 | C81: 8468 | D81: D
A82: BR11JG | B82: E01000676 | C82: 8468 | D82: D
A83: BR11JH | B83: E01000676 | C83: 8468 | D83: D
A84: BR11JJ | B84: E01000677 | C84: 20928 | D84: D
A85: BR11JL | B85: E01000676 | C85: 8468 | D85: D
A86: BR11JN | B86: E01000675 | C86: 26797 | D86: D
A87: BR11JP | B87: E01000675 | C87: 26797 | D87: D
A88: BR11JQ | B88: E01000675 | C88: 26797 | D88: D
A89: BR11JR | B89: E01000675 | C89: 26797 | D89: D
A90: BR11JS | B90: E01000677 | C90: 20928 | D90: D
A91: BR11JT | B91: E01000675 | C91: 26797 | D91: D
A92: BR11JU | B92: E01000675 | C92: 26797 | D92: D
A93: BR11JW | B93: E01000675 | C93: 26797 | D93: D
A94: BR11JX | B94: E01000675 | C94: 26797 | D94: D
A95: BR11JY | B95: E01000675 | C95: 26797 | D95: D
A96: BR11LA | B96: E01000675 | C96: 26797 | D96: D
A97: BR11LB | B97: E01000676 | C97: 8468 | D97: D
A98: BR11LD | B98: E01000675 | C98: 26797 | D98: D
A99: BR11LE | B99: E01000675 | C99: 26797 | D99: D
A100: BR11LF | B100: E01000675 | C100: 26797 | D100: D
A101: BR11LG | B101: E01000675 | C101: 26797 | D101: D
A102: BR11LH | B102: E01000675 | C102: 26797 | D102: D
A103: BR11LJ | B103: E01000675 | C103: 26797 | D103: D
A104: BR11LL | B104: E01000675 | C104: 26797 | D104: D
A105: BR11LN | B105: E01000675 | C105: 26797 | D105: D
A106: BR11LP | B106: E01000675 | C106: 26797 | D106: D
A107: BR11LQ | B107: E01000675 | C107: 26797 | D107: D
A108: BR11LR | B108: E01000675 | C108: 26797 | D108: D
A109: BR11LS | B109: E01000675 | C109: 26797 | D109: D
A110: BR11LT | B110: E01000675 | C110: 26797 | D110: D
A111: BR11LU | B111: E01000675 | C111: 26797 | D111: D
A112: BR11LW | B112: E01000675 | C112: 26797 | D112: D
A113: BR11LX | B113: E01000675 | C113: 26797 | D113: D
A114: BR11LY | B114: E01000676 | C114: 8468 | D114: D
A115: BR11LZ | B115: E01000675 | C115: 26797 | D115: D
A116: BR11NA | B116: E01000676 | C116: 8468 | D116: D
A117: BR11NB | B117: E01000677 | C117: 20928 | D117: D
A118: BR11ND | B118: E01000676 | C118: 8468 | D118: D
A119: BR11NE | B119: E01000676 | C119: 8468 | D119: D
A120: BR11NF | B120: E01000676 | C120: 8468 | D120: D
A121: BR11NG | B121: E01000676 | C121: 8468 | D121: D
A122: BR11NH | B122: E01000675 | C122: 26797 | D122: D
A123: BR11NJ | B123: E01000676 | C123: 8468 | D123: D
A124: BR11NL | B124: E01000676 | C124: 8468 | D124: D
A125: BR11NN | B125: E01000676 | C125: 8468 | D125: D
A126: BR11NP | B126: E01000676 | C126: 8468 | D126: D
A127: BR11NQ | B127: E01000676 | C127: 8468 | D127: D
A128: BR11NR | B128: E01000675 | C128: 26797 | D128: D
A129: BR11NS | B129: E01000675 | C129: 26797 | D129: D
A130: BR11NT | B130: E01000675 | C130: 26797 | D130: D
A131: BR11NU | B131: E01000675 | C131: 26797 | D131: D
A132: BR11NW | B132: E01000675 | C132: 26797 | D132: D
A133: BR11NX | B133: E01000675 | C133: 26797 | D133: D
A134: BR11NY | B134: E01000676 | C134: 8468 | D134: D
A135: BR11NZ | B135: E01000676 | C135: 8468 | D135: D
A136: BR11PA | B136: E01000676 | C136: 8468 | D136: D
A137: BR11PB | B137: E01000676 | C137: 8468 | D137: D
A138: BR11PD | B138: E01000676 | C138: 8468 | D138: D
A139: BR11PE | B139: E01000676 | C139: 8468 | D139: D
A140: BR11PF | B140: E01000676 | C140: 8468 | D140: D
A141: BR11PG | B141: E01000676 | C141: 8468 | D141: D
A142: BR11PH | B142: E01000676 | C142: 8468 | D142: D
A143: BR11PJ | B143: E01000676 | C143: 8468 | D143: D
A144: BR11PL | B144: E01000676 | C144: 8468 | D144: D
A145: BR11PN | B145: E01000676 | C145: 8468 | D145: D
A146: BR11PP | B146: E01000675 | C146: 26797 | D146: D
A147: BR11PQ | B147: E01000676 | C147: 8468 | D147: D
A148: BR11PR | B148: E01000676 | C148: 8468 | D148: D
A149: BR11PS | B149: E01000676 | C149: 8468 | D149: D
A150: BR11PT | B150: E01000674 | C150: 17363 | D150: D
A151: BR11PU | B151: E01000676 | C151: 8468 | D151: D
A152: BR11PW | B152: E01000676 | C152: 8468 | D152: D
A153: BR11PX | B153: E01000676 | C153: 8468 | D153: D
A154: BR11PY | B154: E01000676 | C154: 8468 | D154: D
A155: BR11PZ | B155: E01000676 | C155: 8468 | D155: D
A156: BR11QA | B156: E01000676 | C156: 8468 | D156: D
A157: BR11QB | B157: E01000676 | C157: 8468 | D157: D
A158: BR11QD | B158: E01000677 | C158: 20928 | D158: D
A159: BR11QE | B159: E01000675 | C159: 26797 | D159: D
A160: BR11QF | B160: E01000676 | C160: 8468 | D160: D
A161: BR11QG | B161: E01000676 | C161: 8468 | D161: D
A162: BR11QH | B162: E01000675 | C162: 26797 | D162: D
A163: BR11QJ | B163: E01000675 | C163: 26797 | D163: D
A164: BR11QL | B164: E01000675 | C164: 26797 | D164: D
A165: BR11QN | B165: E01000675 | C165: 26797 | D165: D
A166: BR11QP | B166: E01000675 | C166: 26797 | D166: D
A167: BR11QQ | B167: E01000675 | C167: 26797 | D167: D
A168: BR11QR | B168: E01000675 | C168: 26797 | D168: D
A169: BR11QS | B169: E01000676 | C169: 8468 | D169: D
A170: BR11QT | B170: E01000675 | C170: 26797 | D170: D
A171: BR11QU | B171: E01000675 | C171: 26797 | D171: D
A172: BR11QW | B172: E01000675 | C172: 26797 | D172: D
A173: BR11QX | B173: E01000676 | C173: 8468 | D173: D
A174: BR11QY | B174: E01000677 | C174: 20928 | D174: D
A175: BR11RA | B175: E01000676 | C175: 8468 | D175: D
A176: BR11RB | B176: E01000675 | C176: 26797 | D176: D
A177: BR11RD | B177: E01000676 | C177: 8468 | D177: D
A178: BR11RE | B178: E01000676 | C178: 8468 | D178: D
A179: BR11RF | B179: E01000675 | C179: 26797 | D179: D
A180: BR11RG | B180: E01000675 | C180: 26797 | D180: D
A181: BR11RH | B181: E01000675 | C181: 26797 | D181: D
A182: BR11RJ | B182: E01000676 | C182: 8468 | D182: D
A183: BR11RL | B183: E01000676 | C183: 8468 | D183: D
A184: BR11RN | B184: E01000676 | C184: 8468 | D184: D
A185: BR11RP | B185: E01000675 | C185: 26797 | D185: D
A186: BR11RQ | B186: E01000675 | C186: 26797 | D186: D
A187: BR11RR | B187: E01000676 | C187: 8468 | D187: D
A188: BR11RS | B188: E01000676 | C188: 8468 | D188: D
A189: BR11RT | B189: E01000676 | C189: 8468 | D189: D
A190: BR11RU | B190: E01000676 | C190: 8468 | D190: D
A191: BR11RW | B191: E01000676 | C191: 8468 | D191: D
A192: BR11RX | B192: E01000676 | C192: 8468 | D192: D
A193: BR11RY | B193: E01000676 | C193: 8468 | D193: D
A194: BR11RZ | B194: E01000676 | C194: 8468 | D194: D
A195: BR11SA | B195: E01000676 | C195: 8468 | D195: D
A196: BR11SB | B196: E01000675 | C196: 26797 | D196: D
A197: BR11SD | B197: E01000675 | C197: 26797 | D197: D
A198: BR11SE | B198: E01000675 | C198: 26797 | D198: D
A199: BR11SG | B199: E01000675 | C199: 26797 | D199: D
A200: BR11SH | B200: E01000676 | C200: 8468 | D200: D
... 4300 more rows

Sheet Early Years
B2: Early Years Deprivation Calculator | F2: You do not need to return the deprivation calculator template. The calculator is purely a budgeting tool to assist you in estimating the levels of deprivation funding your setting can expect to receive.
B4: Early Years 3&4 Year Olds Deprivation Funding
B6: Deprivation Hourly Rate | C6: Band | D6: Rate
B7: The most deprived 5% pupils | C7: A | D7: 0.54 | F7: Please note failure to enter a postcode in the correct format eg CT1O1DY instead of CT101DY will not return a banding. If the postcode does not appear after correct entry, kindly complete the linked form below to facilitate the addition of the postcode.
B8: The next 10% most deprived | C8: B | D8: 0.27
B9: The next 10% most deprived | C9: C | D9: 0.13 | F9: Postcode Update Form
B10: Remaining pupils | C10: D | D10: 0
F12: Year 1 | K12: Year 2 | P12: Year 3
B13: =IF(SUM(A15:A115)>0.5,"One or more postcode has a space","") ->  | F13: Weekly Hours | K13: Weekly Hours | P13: Weekly Hours
B14: Pupil Reference | C14: Pupils Postcode (No Spaces) | D14: Band | E14: Rate per Hour | F14: Summer | G14: Autumn | H14: Spring | I14: Total Termly Hours | J14: Total Funding | K14: Summer | L14: Autumn | M14: Spring | N14: Total Termly Hours | O14: Total Funding | P14: Summer | Q14: Autumn | R14: Spring | S14: Total Termly Hours | T14: Total Funding
A15: =IF(ISNUMBER(SEARCH(" ",C15)),1,"") ->  | D15: =IF(ISERROR(VLOOKUP(C15,IDACI!A:D,4,0)),"",VLOOKUP(C15,IDACI!A:D,4,0)) ->  | E15: =IF(ISERROR(VLOOKUP(D15,$C$7:$D$10,2,0)),0,VLOOKUP(D15,$C$7:$D$10,2,0)) -> 0 | I15: =(F15*13)+(G15*14)+(H15*11) -> 0 | J15: =I15*E15 -> 0 | N15: =(K15*13)+(L15*14)+(M15*11) -> 0 | O15: =N15*E15 -> 0 | S15: =(P15*13)+(Q15*14)+(R15*11) -> 0 | T15: =S15*E15 -> 0
A16: =IF(ISNUMBER(SEARCH(" ",C16)),1,"") ->  | D16: =IF(ISERROR(VLOOKUP(C16,IDACI!A:D,4,0)),"",VLOOKUP(C16,IDACI!A:D,4,0)) ->  | E16: =IF(ISERROR(VLOOKUP(D16,$C$7:$D$10,2,0)),0,VLOOKUP(D16,$C$7:$D$10,2,0)) -> 0 | I16: =(F16*13)+(G16*14)+(H16*11) -> 0 | J16: =I16*E16 -> 0 | N16: =(K16*13)+(L16*14)+(M16*11) -> 0 | O16: =N16*E16 -> 0 | S16: =(P16*13)+(Q16*14)+(R16*11) -> 0 | T16: =S16*E16 -> 0
D17: =IF(ISERROR(VLOOKUP(C17,IDACI!A:D,4,0)),"",VLOOKUP(C17,IDACI!A:D,4,0)) ->  | E17: 0 | I17: 0 | J17: 0 | N17: 0 | O17: 0 | S17: 0 | T17: 0
D18: =IF(ISERROR(VLOOKUP(C18,IDACI!A:D,4,0)),"",VLOOKUP(C18,IDACI!A:D,4,0)) ->  | E18: 0 | I18: 0 | J18: 0 | N18: 0 | O18: 0 | S18: 0 | T18: 0
D19: =IF(ISERROR(VLOOKUP(C19,IDACI!A:D,4,0)),"",VLOOKUP(C19,IDACI!A:D,4,0)) ->  | E19: 0 | I19: 0 | J19: 0 | N19: 0 | O19: 0 | S19: 0 | T19: 0
D20: =IF(ISERROR(VLOOKUP(C20,IDACI!A:D,4,0)),"",VLOOKUP(C20,IDACI!A:D,4,0)) ->  | E20: 0 | I20: 0 | J20: 0 | N20: 0 | O20: 0 | S20: 0 | T20: 0
A21: =IF(ISNUMBER(SEARCH(" ",C21)),1,"") ->  | D21: =IF(ISERROR(VLOOKUP(C21,IDACI!A:D,4,0)),"",VLOOKUP(C21,IDACI!A:D,4,0)) ->  | E21: =IF(ISERROR(VLOOKUP(D21,$C$7:$D$10,2,0)),0,VLOOKUP(D21,$C$7:$D$10,2,0)) -> 0 | I21: =(F21*13)+(G21*14)+(H21*11) -> 0 | J21: =I21*E21 -> 0 | N21: =(K21*13)+(L21*14)+(M21*11) -> 0 | O21: =N21*E21 -> 0 | S21: =(P21*13)+(Q21*14)+(R21*11) -> 0 | T21: =S21*E21 -> 0
D22: =IF(ISERROR(VLOOKUP(C22,IDACI!A:D,4,0)),"",VLOOKUP(C22,IDACI!A:D,4,0)) ->  | E22: 0 | I22: 0 | J22: 0 | N22: 0 | O22: 0 | S22: 0 | T22: 0
D23: =IF(ISERROR(VLOOKUP(C23,IDACI!A:D,4,0)),"",VLOOKUP(C23,IDACI!A:D,4,0)) ->  | E23: 0 | I23: 0 | J23: 0 | N23: 0 | O23: 0 | S23: 0 | T23: 0
D24: =IF(ISERROR(VLOOKUP(C24,IDACI!A:D,4,0)),"",VLOOKUP(C24,IDACI!A:D,4,0)) ->  | E24: 0 | I24: 0 | J24: 0 | N24: 0 | O24: 0 | S24: 0 | T24: 0
D25: =IF(ISERROR(VLOOKUP(C25,IDACI!A:D,4,0)),"",VLOOKUP(C25,IDACI!A:D,4,0)) ->  | E25: 0 | I25: 0 | J25: 0 | N25: 0 | O25: 0 | S25: 0 | T25: 0
D26: =IF(ISERROR(VLOOKUP(C26,IDACI!A:D,4,0)),"",VLOOKUP(C26,IDACI!A:D,4,0)) ->  | E26: 0 | I26: 0 | J26: 0 | N26: 0 | O26: 0 | S26: 0 | T26: 0
D27: =IF(ISERROR(VLOOKUP(C27,IDACI!A:D,4,0)),"",VLOOKUP(C27,IDACI!A:D,4,0)) ->  | E27: 0 | I27: 0 | J27: 0 | N27: 0 | O27: 0 | S27: 0 | T27: 0
D28: =IF(ISERROR(VLOOKUP(C28,IDACI!A:D,4,0)),"",VLOOKUP(C28,IDACI!A:D,4,0)) ->  | E28: 0 | I28: 0 | J28: 0 | N28: 0 | O28: 0 | S28: 0 | T28: 0
D29: =IF(ISERROR(VLOOKUP(C29,IDACI!A:D,4,0)),"",VLOOKUP(C29,IDACI!A:D,4,0)) ->  | E29: 0 | I29: 0 | J29: 0 | N29: 0 | O29: 0 | S29: 0 | T29: 0
D30: =IF(ISERROR(VLOOKUP(C30,IDACI!A:D,4,0)),"",VLOOKUP(C30,IDACI!A:D,4,0)) ->  | E30: 0 | I30: 0 | J30: 0 | N30: 0 | O30: 0 | S30: 0 | T30: 0
D31: =IF(ISERROR(VLOOKUP(C31,IDACI!A:D,4,0)),"",VLOOKUP(C31,IDACI!A:D,4,0)) ->  | E31: 0 | I31: 0 | J31: 0 | N31: 0 | O31: 0 | S31: 0 | T31: 0
D32: =IF(ISERROR(VLOOKUP(C32,IDACI!A:D,4,0)),"",VLOOKUP(C32,IDACI!A:D,4,0)) ->  | E32: 0 | I32: 0 | J32: 0 | N32: 0 | O32: 0 | S32: 0 | T32: 0
D33: =IF(ISERROR(VLOOKUP(C33,IDACI!A:D,4,0)),"",VLOOKUP(C33,IDACI!A:D,4,0)) ->  | E33: 0 | I33: 0 | J33: 0 | N33: 0 | O33: 0 | S33: 0 | T33: 0
D34: =IF(ISERROR(VLOOKUP(C34,IDACI!A:D,4,0)),"",VLOOKUP(C34,IDACI!A:D,4,0)) ->  | E34: 0 | I34: 0 | J34: 0 | N34: 0 | O34: 0 | S34: 0 | T34: 0
D35: =IF(ISERROR(VLOOKUP(C35,IDACI!A:D,4,0)),"",VLOOKUP(C35,IDACI!A:D,4,0)) ->  | E35: 0 | I35: 0 | J35: 0 | N35: 0 | O35: 0 | S35: 0 | T35: 0
D36: =IF(ISERROR(VLOOKUP(C36,IDACI!A:D,4,0)),"",VLOOKUP(C36,IDACI!A:D,4,0)) ->  | E36: 0 | I36: 0 | J36: 0 | N36: 0 | O36: 0 | S36: 0 | T36: 0
A37: =IF(ISNUMBER(SEARCH(" ",C37)),1,"") ->  | D37: =IF(ISERROR(VLOOKUP(C37,IDACI!A:D,4,0)),"",VLOOKUP(C37,IDACI!A:D,4,0)) ->  | E37: =IF(ISERROR(VLOOKUP(D37,$C$7:$D$10,2,0)),0,VLOOKUP(D37,$C$7:$D$10,2,0)) -> 0 | I37: =(F37*13)+(G37*14)+(H37*11) -> 0 | J37: =I37*E37 -> 0 | N37: =(K37*13)+(L37*14)+(M37*11) -> 0 | O37: =N37*E37 -> 0 | S37: =(P37*13)+(Q37*14)+(R37*11) -> 0 | T37: =S37*E37 -> 0
D38: =IF(ISERROR(VLOOKUP(C38,IDACI!A:D,4,0)),"",VLOOKUP(C38,IDACI!A:D,4,0)) ->  | E38: 0 | I38: 0 | J38: 0 | N38: 0 | O38: 0 | S38: 0 | T38: 0
D39: =IF(ISERROR(VLOOKUP(C39,IDACI!A:D,4,0)),"",VLOOKUP(C39,IDACI!A:D,4,0)) ->  | E39: 0 | I39: 0 | J39: 0 | N39: 0 | O39: 0 | S39: 0 | T39: 0
D40: =IF(ISERROR(VLOOKUP(C40,IDACI!A:D,4,0)),"",VLOOKUP(C40,IDACI!A:D,4,0)) ->  | E40: 0 | I40: 0 | J40: 0 | N40: 0 | O40: 0 | S40: 0 | T40: 0
D41: =IF(ISERROR(VLOOKUP(C41,IDACI!A:D,4,0)),"",VLOOKUP(C41,IDACI!A:D,4,0)) ->  | E41: 0 | I41: 0 | J41: 0 | N41: 0 | O41: 0 | S41: 0 | T41: 0
D42: =IF(ISERROR(VLOOKUP(C42,IDACI!A:D,4,0)),"",VLOOKUP(C42,IDACI!A:D,4,0)) ->  | E42: 0 | I42: 0 | J42: 0 | N42: 0 | O42: 0 | S42: 0 | T42: 0
D43: =IF(ISERROR(VLOOKUP(C43,IDACI!A:D,4,0)),"",VLOOKUP(C43,IDACI!A:D,4,0)) ->  | E43: 0 | I43: 0 | J43: 0 | N43: 0 | O43: 0 | S43: 0 | T43: 0
D44: =IF(ISERROR(VLOOKUP(C44,IDACI!A:D,4,0)),"",VLOOKUP(C44,IDACI!A:D,4,0)) ->  | E44: 0 | I44: 0 | J44: 0 | N44: 0 | O44: 0 | S44: 0 | T44: 0
D45: =IF(ISERROR(VLOOKUP(C45,IDACI!A:D,4,0)),"",VLOOKUP(C45,IDACI!A:D,4,0)) ->  | E45: 0 | I45: 0 | J45: 0 | N45: 0 | O45: 0 | S45: 0 | T45: 0
D46: =IF(ISERROR(VLOOKUP(C46,IDACI!A:D,4,0)),"",VLOOKUP(C46,IDACI!A:D,4,0)) ->  | E46: 0 | I46: 0 | J46: 0 | N46: 0 | O46: 0 | S46: 0 | T46: 0
D47: =IF(ISERROR(VLOOKUP(C47,IDACI!A:D,4,0)),"",VLOOKUP(C47,IDACI!A:D,4,0)) ->  | E47: 0 | I47: 0 | J47: 0 | N47: 0 | O47: 0 | S47: 0 | T47: 0
D48: =IF(ISERROR(VLOOKUP(C48,IDACI!A:D,4,0)),"",VLOOKUP(C48,IDACI!A:D,4,0)) ->  | E48: 0 | I48: 0 | J48: 0 | N48: 0 | O48: 0 | S48: 0 | T48: 0
D49: =IF(ISERROR(VLOOKUP(C49,IDACI!A:D,4,0)),"",VLOOKUP(C49,IDACI!A:D,4,0)) ->  | E49: 0 | I49: 0 | J49: 0 | N49: 0 | O49: 0 | S49: 0 | T49: 0
D50: =IF(ISERROR(VLOOKUP(C50,IDACI!A:D,4,0)),"",VLOOKUP(C50,IDACI!A:D,4,0)) ->  | E50: 0 | I50: 0 | J50: 0 | N50: 0 | O50: 0 | S50: 0 | T50: 0
D51: =IF(ISERROR(VLOOKUP(C51,IDACI!A:D,4,0)),"",VLOOKUP(C51,IDACI!A:D,4,0)) ->  | E51: 0 | I51: 0 | J51: 0 | N51: 0 | O51: 0 | S51: 0 | T51: 0
D52: =IF(ISERROR(VLOOKUP(C52,IDACI!A:D,4,0)),"",VLOOKUP(C52,IDACI!A:D,4,0)) ->  | E52: 0 | I52: 0 | J52: 0 | N52: 0 | O52: 0 | S52: 0 | T52: 0
D53: =IF(ISERROR(VLOOKUP(C53,IDACI!A:D,4,0)),"",VLOOKUP(C53,IDACI!A:D,4,0)) ->  | E53: 0 | I53: 0 | J53: 0 | N53: 0 | O53: 0 | S53: 0 | T53: 0
D54: =IF(ISERROR(VLOOKUP(C54,IDACI!A:D,4,0)),"",VLOOKUP(C54,IDACI!A:D,4,0)) ->  | E54: 0 | I54: 0 | J54: 0 | N54: 0 | O54: 0 | S54: 0 | T54: 0
D55: =IF(ISERROR(VLOOKUP(C55,IDACI!A:D,4,0)),"",VLOOKUP(C55,IDACI!A:D,4,0)) ->  | E55: 0 | I55: 0 | J55: 0 | N55: 0 | O55: 0 | S55: 0 | T55: 0
D56: =IF(ISERROR(VLOOKUP(C56,IDACI!A:D,4,0)),"",VLOOKUP(C56,IDACI!A:D,4,0)) ->  | E56: 0 | I56: 0 | J56: 0 | N56: 0 | O56: 0 | S56: 0 | T56: 0
D57: =IF(ISERROR(VLOOKUP(C57,IDACI!A:D,4,0)),"",VLOOKUP(C57,IDACI!A:D,4,0)) ->  | E57: 0 | I57: 0 | J57: 0 | N57: 0 | O57: 0 | S57: 0 | T57: 0
D58: =IF(ISERROR(VLOOKUP(C58,IDACI!A:D,4,0)),"",VLOOKUP(C58,IDACI!A:D,4,0)) ->  | E58: 0 | I58: 0 | J58: 0 | N58: 0 | O58: 0 | S58: 0 | T58: 0
D59: =IF(ISERROR(VLOOKUP(C59,IDACI!A:D,4,0)),"",VLOOKUP(C59,IDACI!A:D,4,0)) ->  | E59: 0 | I59: 0 | J59: 0 | N59: 0 | O59: 0 | S59: 0 | T59: 0
D60: =IF(ISERROR(VLOOKUP(C60,IDACI!A:D,4,0)),"",VLOOKUP(C60,IDACI!A:D,4,0)) ->  | E60: 0 | I60: 0 | J60: 0 | N60: 0 | O60: 0 | S60: 0 | T60: 0
D61: =IF(ISERROR(VLOOKUP(C61,IDACI!A:D,4,0)),"",VLOOKUP(C61,IDACI!A:D,4,0)) ->  | E61: 0 | I61: 0 | J61: 0 | N61: 0 | O61: 0 | S61: 0 | T61: 0
D62: =IF(ISERROR(VLOOKUP(C62,IDACI!A:D,4,0)),"",VLOOKUP(C62,IDACI!A:D,4,0)) ->  | E62: 0 | I62: 0 | J62: 0 | N62: 0 | O62: 0 | S62: 0 | T62: 0
D63: =IF(ISERROR(VLOOKUP(C63,IDACI!A:D,4,0)),"",VLOOKUP(C63,IDACI!A:D,4,0)) ->  | E63: 0 | I63: 0 | J63: 0 | N63: 0 | O63: 0 | S63: 0 | T63: 0
D64: =IF(ISERROR(VLOOKUP(C64,IDACI!A:D,4,0)),"",VLOOKUP(C64,IDACI!A:D,4,0)) ->  | E64: 0 | I64: 0 | J64: 0 | N64: 0 | O64: 0 | S64: 0 | T64: 0
D65: =IF(ISERROR(VLOOKUP(C65,IDACI!A:D,4,0)),"",VLOOKUP(C65,IDACI!A:D,4,0)) ->  | E65: 0 | I65: 0 | J65: 0 | N65: 0 | O65: 0 | S65: 0 | T65: 0
D66: =IF(ISERROR(VLOOKUP(C66,IDACI!A:D,4,0)),"",VLOOKUP(C66,IDACI!A:D,4,0)) ->  | E66: 0 | I66: 0 | J66: 0 | N66: 0 | O66: 0 | S66: 0 | T66: 0
D67: =IF(ISERROR(VLOOKUP(C67,IDACI!A:D,4,0)),"",VLOOKUP(C67,IDACI!A:D,4,0)) ->  | E67: 0 | I67: 0 | J67: 0 | N67: 0 | O67: 0 | S67: 0 | T67: 0
D68: =IF(ISERROR(VLOOKUP(C68,IDACI!A:D,4,0)),"",VLOOKUP(C68,IDACI!A:D,4,0)) ->  | E68: 0 | I68: 0 | J68: 0 | N68: 0 | O68: 0 | S68: 0 | T68: 0
D69: =IF(ISERROR(VLOOKUP(C69,IDACI!A:D,4,0)),"",VLOOKUP(C69,IDACI!A:D,4,0)) ->  | E69: 0 | I69: 0 | J69: 0 | N69: 0 | O69: 0 | S69: 0 | T69: 0
D70: =IF(ISERROR(VLOOKUP(C70,IDACI!A:D,4,0)),"",VLOOKUP(C70,IDACI!A:D,4,0)) ->  | E70: 0 | I70: 0 | J70: 0 | N70: 0 | O70: 0 | S70: 0 | T70: 0
D71: =IF(ISERROR(VLOOKUP(C71,IDACI!A:D,4,0)),"",VLOOKUP(C71,IDACI!A:D,4,0)) ->  | E71: 0 | I71: 0 | J71: 0 | N71: 0 | O71: 0 | S71: 0 | T71: 0
D72: =IF(ISERROR(VLOOKUP(C72,IDACI!A:D,4,0)),"",VLOOKUP(C72,IDACI!A:D,4,0)) ->  | E72: 0 | I72: 0 | J72: 0 | N72: 0 | O72: 0 | S72: 0 | T72: 0
D73: =IF(ISERROR(VLOOKUP(C73,IDACI!A:D,4,0)),"",VLOOKUP(C73,IDACI!A:D,4,0)) ->  | E73: 0 | I73: 0 | J73: 0 | N73: 0 | O73: 0 | S73: 0 | T73: 0
D74: =IF(ISERROR(VLOOKUP(C74,IDACI!A:D,4,0)),"",VLOOKUP(C74,IDACI!A:D,4,0)) ->  | E74: 0 | I74: 0 | J74: 0 | N74: 0 | O74: 0 | S74: 0 | T74: 0
D75: =IF(ISERROR(VLOOKUP(C75,IDACI!A:D,4,0)),"",VLOOKUP(C75,IDACI!A:D,4,0)) ->  | E75: 0 | I75: 0 | J75: 0 | N75: 0 | O75: 0 | S75: 0 | T75: 0
D76: =IF(ISERROR(VLOOKUP(C76,IDACI!A:D,4,0)),"",VLOOKUP(C76,IDACI!A:D,4,0)) ->  | E76: 0 | I76: 0 | J76: 0 | N76: 0 | O76: 0 | S76: 0 | T76: 0
D77: =IF(ISERROR(VLOOKUP(C77,IDACI!A:D,4,0)),"",VLOOKUP(C77,IDACI!A:D,4,0)) ->  | E77: 0 | I77: 0 | J77: 0 | N77: 0 | O77: 0 | S77: 0 | T77: 0
D78: =IF(ISERROR(VLOOKUP(C78,IDACI!A:D,4,0)),"",VLOOKUP(C78,IDACI!A:D,4,0)) ->  | E78: 0 | I78: 0 | J78: 0 | N78: 0 | O78: 0 | S78: 0 | T78: 0
D79: =IF(ISERROR(VLOOKUP(C79,IDACI!A:D,4,0)),"",VLOOKUP(C79,IDACI!A:D,4,0)) ->  | E79: 0 | I79: 0 | J79: 0 | N79: 0 | O79: 0 | S79: 0 | T79: 0
D80: =IF(ISERROR(VLOOKUP(C80,IDACI!A:D,4,0)),"",VLOOKUP(C80,IDACI!A:D,4,0)) ->  | E80: 0 | I80: 0 | J80: 0 | N80: 0 | O80: 0 | S80: 0 | T80: 0
D81: =IF(ISERROR(VLOOKUP(C81,IDACI!A:D,4,0)),"",VLOOKUP(C81,IDACI!A:D,4,0)) ->  | E81: 0 | I81: 0 | J81: 0 | N81: 0 | O81: 0 | S81: 0 | T81: 0
D82: =IF(ISERROR(VLOOKUP(C82,IDACI!A:D,4,0)),"",VLOOKUP(C82,IDACI!A:D,4,0)) ->  | E82: 0 | I82: 0 | J82: 0 | N82: 0 | O82: 0 | S82: 0 | T82: 0
A83: =IF(ISNUMBER(SEARCH(" ",C83)),1,"") ->  | D83: =IF(ISERROR(VLOOKUP(C83,IDACI!A:D,4,0)),"",VLOOKUP(C83,IDACI!A:D,4,0)) ->  | E83: =IF(ISERROR(VLOOKUP(D83,$C$7:$D$10,2,0)),0,VLOOKUP(D83,$C$7:$D$10,2,0)) -> 0 | I83: =(F83*13)+(G83*14)+(H83*11) -> 0 | J83: =I83*E83 -> 0 | N83: =(K83*13)+(L83*14)+(M83*11) -> 0 | O83: =N83*E83 -> 0 | S83: =(P83*13)+(Q83*14)+(R83*11) -> 0 | T83: =S83*E83 -> 0
D84: =IF(ISERROR(VLOOKUP(C84,IDACI!A:D,4,0)),"",VLOOKUP(C84,IDACI!A:D,4,0)) ->  | E84: 0 | I84: 0 | J84: 0 | N84: 0 | O84: 0 | S84: 0 | T84: 0
D85: =IF(ISERROR(VLOOKUP(C85,IDACI!A:D,4,0)),"",VLOOKUP(C85,IDACI!A:D,4,0)) ->  | E85: 0 | I85: 0 | J85: 0 | N85: 0 | O85: 0 | S85: 0 | T85: 0
D86: =IF(ISERROR(VLOOKUP(C86,IDACI!A:D,4,0)),"",VLOOKUP(C86,IDACI!A:D,4,0)) ->  | E86: 0 | I86: 0 | J86: 0 | N86: 0 | O86: 0 | S86: 0 | T86: 0
D87: =IF(ISERROR(VLOOKUP(C87,IDACI!A:D,4,0)),"",VLOOKUP(C87,IDACI!A:D,4,0)) ->  | E87: 0 | I87: 0 | J87: 0 | N87: 0 | O87: 0 | S87: 0 | T87: 0
D88: =IF(ISERROR(VLOOKUP(C88,IDACI!A:D,4,0)),"",VLOOKUP(C88,IDACI!A:D,4,0)) ->  | E88: 0 | I88: 0 | J88: 0 | N88: 0 | O88: 0 | S88: 0 | T88: 0
D89: =IF(ISERROR(VLOOKUP(C89,IDACI!A:D,4,0)),"",VLOOKUP(C89,IDACI!A:D,4,0)) ->  | E89: 0 | I89: 0 | J89: 0 | N89: 0 | O89: 0 | S89: 0 | T89: 0
D90: =IF(ISERROR(VLOOKUP(C90,IDACI!A:D,4,0)),"",VLOOKUP(C90,IDACI!A:D,4,0)) ->  | E90: 0 | I90: 0 | J90: 0 | N90: 0 | O90: 0 | S90: 0 | T90: 0
D91: =IF(ISERROR(VLOOKUP(C91,IDACI!A:D,4,0)),"",VLOOKUP(C91,IDACI!A:D,4,0)) ->  | E91: 0 | I91: 0 | J91: 0 | N91: 0 | O91: 0 | S91: 0 | T91: 0
D92: =IF(ISERROR(VLOOKUP(C92,IDACI!A:D,4,0)),"",VLOOKUP(C92,IDACI!A:D,4,0)) ->  | E92: 0 | I92: 0 | J92: 0 | N92: 0 | O92: 0 | S92: 0 | T92: 0
D93: =IF(ISERROR(VLOOKUP(C93,IDACI!A:D,4,0)),"",VLOOKUP(C93,IDACI!A:D,4,0)) ->  | E93: 0 | I93: 0 | J93: 0 | N93: 0 | O93: 0 | S93: 0 | T93: 0
D94: =IF(ISERROR(VLOOKUP(C94,IDACI!A:D,4,0)),"",VLOOKUP(C94,IDACI!A:D,4,0)) ->  | E94: 0 | I94: 0 | J94: 0 | N94: 0 | O94: 0 | S94: 0 | T94: 0
D95: =IF(ISERROR(VLOOKUP(C95,IDACI!A:D,4,0)),"",VLOOKUP(C95,IDACI!A:D,4,0)) ->  | E95: 0 | I95: 0 | J95: 0 | N95: 0 | O95: 0 | S95: 0 | T95: 0
D96: =IF(ISERROR(VLOOKUP(C96,IDACI!A:D,4,0)),"",VLOOKUP(C96,IDACI!A:D,4,0)) ->  | E96: 0 | I96: 0 | J96: 0 | N96: 0 | O96: 0 | S96: 0 | T96: 0
D97: =IF(ISERROR(VLOOKUP(C97,IDACI!A:D,4,0)),"",VLOOKUP(C97,IDACI!A:D,4,0)) ->  | E97: 0 | I97: 0 | J97: 0 | N97: 0 | O97: 0 | S97: 0 | T97: 0
D98: =IF(ISERROR(VLOOKUP(C98,IDACI!A:D,4,0)),"",VLOOKUP(C98,IDACI!A:D,4,0)) ->  | E98: 0 | I98: 0 | J98: 0 | N98: 0 | O98: 0 | S98: 0 | T98: 0
D99: =IF(ISERROR(VLOOKUP(C99,IDACI!A:D,4,0)),"",VLOOKUP(C99,IDACI!A:D,4,0)) ->  | E99: 0 | I99: 0 | J99: 0 | N99: 0 | O99: 0 | S99: 0 | T99: 0
D100: =IF(ISERROR(VLOOKUP(C100,IDACI!A:D,4,0)),"",VLOOKUP(C100,IDACI!A:D,4,0)) ->  | E100: 0 | I100: 0 | J100: 0 | N100: 0 | O100: 0 | S100: 0 | T100: 0
D101: =IF(ISERROR(VLOOKUP(C101,IDACI!A:D,4,0)),"",VLOOKUP(C101,IDACI!A:D,4,0)) ->  | E101: 0 | I101: 0 | J101: 0 | N101: 0 | O101: 0 | S101: 0 | T101: 0
D102: =IF(ISERROR(VLOOKUP(C102,IDACI!A:D,4,0)),"",VLOOKUP(C102,IDACI!A:D,4,0)) ->  | E102: 0 | I102: 0 | J102: 0 | N102: 0 | O102: 0 | S102: 0 | T102: 0
D103: =IF(ISERROR(VLOOKUP(C103,IDACI!A:D,4,0)),"",VLOOKUP(C103,IDACI!A:D,4,0)) ->  | E103: 0 | I103: 0 | J103: 0 | N103: 0 | O103: 0 | S103: 0 | T103: 0
D104: =IF(ISERROR(VLOOKUP(C104,IDACI!A:D,4,0)),"",VLOOKUP(C104,IDACI!A:D,4,0)) ->  | E104: 0 | I104: 0 | J104: 0 | N104: 0 | O104: 0 | S104: 0 | T104: 0
D105: =IF(ISERROR(VLOOKUP(C105,IDACI!A:D,4,0)),"",VLOOKUP(C105,IDACI!A:D,4,0)) ->  | E105: 0 | I105: 0 | J105: 0 | N105: 0 | O105: 0 | S105: 0 | T105: 0
D106: =IF(ISERROR(VLOOKUP(C106,IDACI!A:D,4,0)),"",VLOOKUP(C106,IDACI!A:D,4,0)) ->  | E106: 0 | I106: 0 | J106: 0 | N106: 0 | O106: 0 | S106: 0 | T106: 0
D107: =IF(ISERROR(VLOOKUP(C107,IDACI!A:D,4,0)),"",VLOOKUP(C107,IDACI!A:D,4,0)) ->  | E107: 0 | I107: 0 | J107: 0 | N107: 0 | O107: 0 | S107: 0 | T107: 0
D108: =IF(ISERROR(VLOOKUP(C108,IDACI!A:D,4,0)),"",VLOOKUP(C108,IDACI!A:D,4,0)) ->  | E108: 0 | I108: 0 | J108: 0 | N108: 0 | O108: 0 | S108: 0 | T108: 0
D109: =IF(ISERROR(VLOOKUP(C109,IDACI!A:D,4,0)),"",VLOOKUP(C109,IDACI!A:D,4,0)) ->  | E109: 0 | I109: 0 | J109: 0 | N109: 0 | O109: 0 | S109: 0 | T109: 0
D110: =IF(ISERROR(VLOOKUP(C110,IDACI!A:D,4,0)),"",VLOOKUP(C110,IDACI!A:D,4,0)) ->  | E110: 0 | I110: 0 | J110: 0 | N110: 0 | O110: 0 | S110: 0 | T110: 0
A111: =IF(ISNUMBER(SEARCH(" ",C111)),1,"") ->  | D111: =IF(ISERROR(VLOOKUP(C111,IDACI!A:D,4,0)),"",VLOOKUP(C111,IDACI!A:D,4,0)) ->  | E111: =IF(ISERROR(VLOOKUP(D111,$C$7:$D$10,2,0)),0,VLOOKUP(D111,$C$7:$D$10,2,0)) -> 0 | I111: =(F111*13)+(G111*14)+(H111*11) -> 0 | J111: =I111*E111 -> 0 | N111: =(K111*13)+(L111*14)+(M111*11) -> 0 | O111: =N111*E111 -> 0 | S111: =(P111*13)+(Q111*14)+(R111*11) -> 0 | T111: =S111*E111 -> 0
D112: =IF(ISERROR(VLOOKUP(C112,IDACI!A:D,4,0)),"",VLOOKUP(C112,IDACI!A:D,4,0)) ->  | E112: 0 | I112: 0 | J112: 0 | N112: 0 | O112: 0 | S112: 0 | T112: 0
D113: =IF(ISERROR(VLOOKUP(C113,IDACI!A:D,4,0)),"",VLOOKUP(C113,IDACI!A:D,4,0)) ->  | E113: 0 | I113: 0 | J113: 0 | N113: 0 | O113: 0 | S113: 0 | T113: 0
D114: =IF(ISERROR(VLOOKUP(C114,IDACI!A:D,4,0)),"",VLOOKUP(C114,IDACI!A:D,4,0)) ->  | E114: 0 | I114: 0 | J114: 0 | N114: 0 | O114: 0 | S114: 0 | T114: 0
B115: Totals: | D115: =IF(ISERROR(VLOOKUP(C115,IDACI!A:D,4,0)),"",VLOOKUP(C115,IDACI!A:D,4,0)) ->  | I115: =SUM(I15:I114) -> 0 | J115: =SUM(J15:J114) -> 0 | N115: =SUM(N15:N114) -> 0 | O115: =SUM(O15:O114) -> 0 | S115: =SUM(S15:S114) -> 0 | T115: =SUM(T15:T114) -> 0
